fUSD/lending_fUSD_20240301
["ID","MTS","AMOUNT","RATE_DAILY","PERIOD"]
[316032250,1709329838436,-967.50089538,0.00020846,2]
[316032251,1709329838445,-155.33611342,0.00020846,2]
[316032252,1709329838454,-251.9698705,0.00020846,2]
[316032253,1709329838464,-175.33881001,0.00020846,2]
[316032254,1709329838474,-251.32830209,0.00020846,2]
[316032255,1709329838483,-230.80679377,0.00020846,2]
[316032256,1709329838493,-155.0,0.00020846,2]
[316032257,1709329838503,-155.32688139,0.00020846,2]
[316032258,1709329838514,-226.15782634,0.00020846,2]
[316032259,1709329838524,-633.61112732,0.00020846,2]
[316032260,1709329838533,-292.59029573,0.00020846,2]
[316032261,1709329838542,-205.39995957,0.00020846,2]
[316032262,1709329838552,-155.14950808,0.00020846,2]
[316032263,1709329838561,-416.53772257,0.00020846,2]
[316032264,1709329838571,-155.4075554,0.00020846,2]
[316032265,1709329838580,-520.77823815,0.00020846,7]
[316032266,1709329838589,-810.33340771,0.00020846,2]
[316032267,1709329838599,-478.19179336,0.00020846,2]
[316032268,1709329838608,-692.77664612,0.00020846,2]
[316032269,1709329838617,-155.22825408,0.00020846,2]
[316032270,1709329838626,-459.07131453,0.00020846,2]
[316032271,1709329838635,-155.35098602,0.00020846,2]
[316032272,1709329838645,-1217.61099103,0.00020846,2]
[316032273,1709329838654,-155.0,0.00020846,2]
[316032274,1709329838663,-1598.96248092,0.00020846,2]
[316032275,1709329838672,-1412.71448902,0.00020846,2]
[316032276,1709329838681,-157.24730753,0.00020846,2]
[316032277,1709329838691,-157.68094785,0.00020846,2]
[316032278,1709329838701,-936.65453699,0.00020846,4]
[316032279,1709329838710,-216.50932404,0.00020846,2]
[316032280,1709329838719,-163.31001827,0.00020846,2]
[316032281,1709329838728,-329249.28408129,0.00020847,2]
[316032282,1709329838738,-416719.9533,0.00020848,2]
[316032284,1709329838748,-178.0,0.00020912,2]
[316032286,1709329838757,-250.0,0.00020917,2]
[316032288,1709329838767,-159.38,0.00021015,2]
[316032290,1709329838777,-150.0,0.00021027,2]
[316032292,1709329838786,-500.0,0.00021027,2]
[316032294,1709329838796,-150.0,0.00021036,2]
[316032296,1709329838806,-1588.83854076,0.00021048,2]
[316032298,1709329838815,-172.65,0.0002105,2]
[316032301,1709329838825,-201.0,0.00021051,2]
[316032303,1709329838834,-1061.29106492,0.00021055,2]
[316032305,1709329838844,-6345.89,0.00021096,2]
[316032307,1709329838852,-668.75,0.00021096,2]
[316032309,1709329838861,-211.0,0.00021101,2]
[316032311,1709329838871,-151.0,0.00021136,2]
[316032313,1709329838880,-2207.0,0.0002115,2]
[316032315,1709329838889,-428.58,0.00021191,2]
[316032317,1709329838898,-2178.06611886,0.00021199,2]
[316032319,1709329838907,-100000.0,0.00021201,2]
[316032321,1709329838916,-1379.07328627,0.00021267,2]
[316032323,1709329838925,-199.87038409,0.00021272,2]
[316032325,1709329838935,-1588.83854076,0.00021279,2]
[316032327,1709329838944,-159.38,0.00021354,2]
[316032329,1709329838953,-428.58,0.00021354,2]
[316032331,1709329838962,-428.58,0.00021357,2]
[316032333,1709329838972,-1061.29106492,0.00021363,2]
[316032335,1709329838981,-200000.0,0.00021364,2]
[316032337,1709329838990,-200000.0,0.00021367,2]
[316032339,1709329838999,-4827.73,0.00021379,2]
[316032341,1709329839008,-1379.07328621,0.00021415,2]
[316032343,1709329839017,-642.42937271,0.00021446,6]
[316032344,1709329839026,-642.42937271,0.00021455,6]
[316032345,1709329839035,-178.0,0.0002146,2]
[316032346,1709329839044,-642.42937271,0.00021482,6]
[316032347,1709329839054,-642.42937271,0.00021493,6]
[316032348,1709329839063,-4813.36,0.00021501,2]
[316032349,1709329839072,-1379.07328621,0.00021564,2]
[316032350,1709329839081,-150.0,0.00021575,2]
[316032351,1709329839090,-1061.29106492,0.0002167,2]
[316032352,1709329839099,-159.38,0.00021693,2]
[316032354,1709329839108,-172.65,0.00021707,2]
[316032356,1709329839117,-1379.07328621,0.00021712,2]
[316032358,1709329839127,-1000.0,0.00021817,2]
[316032360,1709329839136,-49103.0987,0.00021817,2]
[316032362,1709329839146,-5000.0,0.00021817,2]
[316032364,1709329839154,-174.4807636,0.00021817,2]
[316032366,1709329839164,-199.87038409,0.00021817,2]
[316032368,1709329839173,-151.0,0.00021821,2]
[316032370,1709329839182,-223.34,0.00021833,2]
[316032372,1709329839193,-164.64,0.00021834,2]
[316032374,1709329839202,-1379.07328621,0.00021861,2]
[316032376,1709329839211,-523.1887831,0.00021907,2]
[316032378,1709329839222,-428.58,0.00021907,2]
[316032380,1709329839232,-396.67969995,0.00021916,5]
[316032382,1709329839241,-500.0,0.00021917,2]
[316032402,1709329839415,-500.0,0.00021917,2]
[316032406,1709329839453,-500.0,0.00021917,2]
[316032408,1709329839462,-365.23105725,0.00021917,2]
[316032411,1709329839472,-647.8384886,0.00021917,2]
[316032413,1709329839482,-500.0,0.00021917,2]
[316032415,1709329839491,-500.0,0.00021917,2]
[316032417,1709329839501,-500.0,0.00021917,2]
[316032419,1709329839510,-500.0,0.00021917,2]
[316032421,1709329839520,-500.0,0.00021917,2]
[316032423,1709329839530,-500.0,0.00021917,2]
[316032425,1709329839539,-500.0,0.00021917,2]
[316032427,1709329839548,-500.0,0.00021917,2]
[316032429,1709329839557,-500.0,0.00021917,2]
[316032431,1709329839567,-500.0,0.00021917,2]
[316032433,1709329839576,-500.0,0.00021917,2]
[316032435,1709329839586,-500.0,0.00021917,2]
[316032437,1709329839596,-234.54302803,0.00021917,2]
[316032439,1709329839605,-500.0,0.00021917,2]
[316032441,1709329839615,-500.0,0.00021917,2]
[316032444,1709329839624,-500.0,0.00021917,2]
[316032446,1709329839633,-500.0,0.00021917,2]
[316032448,1709329839643,-501.02519877,0.00021917,2]
[316032450,1709329839652,-500.0,0.00021917,2]
[316032452,1709329839661,-500.0,0.00021917,2]
[316032454,1709329839671,-500.0,0.00021917,2]
[316032456,1709329839681,-520.99525385,0.00021917,2]
[316032458,1709329839691,-500.0,0.00021917,2]
[316032460,1709329839701,-500.0,0.00021917,2]
[316032462,1709329839711,-500.0,0.00021917,2]
[316032464,1709329839720,-500.0,0.00021917,2]
[316032466,1709329839729,-500.0,0.00021917,2]
[316032468,1709329839738,-500.0,0.00021917,2]
[316032470,1709329839747,-500.0,0.00021917,2]
[316032473,1709329839757,-506.00424165,0.00021917,2]
[316032475,1709329839766,-502.61120689,0.00021917,2]
[316032477,1709329839775,-286.95298034,0.00021917,2]
[316032479,1709329839784,-500.0,0.00021917,2]
[316032481,1709329839793,-500.0,0.00021917,2]
[316032483,1709329839803,-500.0,0.00021917,2]
[316032485,1709329839812,-171.27572292,0.00021917,2]
[316032487,1709329839822,-500.0,0.00021917,2]
[316032489,1709329839831,-500.0,0.00021917,2]
[316032491,1709329839840,-348.30847981,0.00021917,2]
[316032493,1709329839849,-500.0,0.00021917,2]
[316032495,1709329839859,-500.0,0.00021917,2]
[316032497,1709329839868,-500.0,0.00021917,2]
[316032499,1709329839877,-500.0,0.00021917,2]
[316032501,1709329839887,-500.0,0.00021917,2]
[316032504,1709329839897,-500.0,0.00021917,2]
[316032506,1709329839906,-500.0,0.00021917,2]
[316032508,1709329839915,-500.0,0.00021917,2]
[316032510,1709329839924,-500.0,0.00021917,2]
[316032512,1709329839933,-500.0,0.00021917,2]
[316032514,1709329839942,-500.0,0.00021917,2]
[316032516,1709329839952,-500.24801721,0.00021917,2]
[316032518,1709329839961,-500.0,0.00021917,2]
[316032520,1709329839971,-500.0,0.00021917,2]
[316032522,1709329839981,-623.33486772,0.00021917,2]
[316032524,1709329839990,-500.0,0.00021917,2]
[316032526,1709329839999,-500.0,0.00021917,2]
[316032528,1709329840008,-500.0,0.00021917,2]
[316032530,1709329840018,-500.0,0.00021917,2]
[316032532,1709329840028,-500.0,0.00021917,2]
[316032534,1709329840037,-500.0,0.00021917,2]
[316032536,1709329840047,-500.0,0.00021917,2]
[316032538,1709329840056,-500.0,0.00021917,2]
[316032541,1709329840066,-500.0,0.00021917,2]
[316032543,1709329840076,-500.0,0.00021917,2]
[316032545,1709329840086,-500.0,0.00021917,2]
[316032547,1709329840096,-500.0,0.00021917,2]
[316032549,1709329840105,-500.0,0.00021917,2]
[316032551,1709329840115,-427.89042494,0.00021917,2]
[316032553,1709329840125,-500.0,0.00021917,2]
[316032555,1709329840134,-500.0,0.00021917,2]
[316032557,1709329840143,-501.21671893,0.00021917,2]
[316032559,1709329840152,-500.0,0.00021917,2]
[316032561,1709329840162,-500.0,0.00021917,2]
[316032563,1709329840171,-500.0,0.00021917,2]
[316032565,1709329840180,-261.44571612,0.00021917,2]
[316032567,1709329840192,-500.0,0.00021917,2]
[316032569,1709329840201,-500.0,0.00021917,2]
[316032572,1709329840211,-500.0,0.00021917,2]
[316032575,1709329840236,-500.0,0.00021917,2]
[316032578,1709329840249,-500.0,0.00021917,2]
[316032580,1709329840258,-500.0,0.00021917,2]
[316032582,1709329840268,-475.6340409,0.00021917,2]
[316032584,1709329840278,-500.0,0.00021917,2]
[316032586,1709329840287,-206.71746713,0.00021917,2]
[316032588,1709329840297,-500.0,0.00021917,2]
[316032590,1709329840306,-500.0,0.00021917,2]
[316032592,1709329840315,-500.0,0.00021917,2]
[316032594,1709329840326,-500.0,0.00021917,2]
[316032597,1709329840338,-500.0,0.00021917,2]
[316032599,1709329840348,-500.0,0.00021917,2]
[316032601,1709329840359,-573.08507192,0.00021917,2]
[316032603,1709329840370,-500.0,0.00021917,2]
[316032605,1709329840381,-500.0,0.00021917,2]
[316032607,1709329840391,-500.0,0.00021917,2]
[316032609,1709329840402,-587.31401054,0.00021917,2]
[316032612,1709329840413,-500.0,0.00021917,2]
[316032614,1709329840430,-500.0,0.00021917,2]
[316032616,1709329840443,-500.0,0.00021917,2]
[316032618,1709329840454,-500.0,0.00021917,2]
[316032620,1709329840464,-624.4579332,0.00021917,2]
[316032622,1709329840474,-500.0,0.00021917,2]
[316032625,1709329840485,-500.0,0.00021917,2]
[316032627,1709329840494,-500.0,0.00021917,2]
[316032629,1709329840504,-500.0,0.00021917,2]
[316032631,1709329840515,-500.0,0.00021917,2]
[316032633,1709329840526,-500.0,0.00021917,2]
[316032635,1709329840536,-500.0,0.00021917,2]
[316032637,1709329840546,-467.85616638,0.00021917,2]
[316032639,1709329840555,-500.0,0.00021917,2]
[316032642,1709329840565,-500.0,0.00021917,2]
[316032645,1709329840575,-500.0,0.00021917,2]
[316032648,1709329840585,-500.0,0.00021917,2]
[316032650,1709329840594,-500.0,0.00021917,2]
[316032652,1709329840604,-500.0,0.00021917,2]
[316032654,1709329840615,-500.0,0.00021917,2]
[316032656,1709329840625,-500.0,0.00021917,2]
[316032658,1709329840635,-500.0,0.00021917,2]
[316032660,1709329840645,-500.0,0.00021917,2]
[316032663,1709329840656,-500.0,0.00021917,2]
[316032665,1709329840674,-500.0,0.00021917,2]
[316032668,1709329840684,-500.0,0.00021917,2]
[316032670,1709329840695,-500.0,0.00021917,2]
[316032672,1709329840706,-500.0,0.00021917,2]
[316032674,1709329840715,-501.69525506,0.00021917,2]
[316032676,1709329840726,-500.0,0.00021917,2]
[316032679,1709329840738,-500.0,0.00021917,2]
[316032681,1709329840748,-500.0,0.00021917,2]
[316032683,1709329840758,-500.0,0.00021917,2]
[316032685,1709329840769,-500.0,0.00021917,2]
[316032687,1709329840779,-500.0,0.00021917,2]
[316032689,1709329840790,-500.0,0.00021917,2]
[316032692,1709329840801,-500.0,0.00021917,2]
[316032694,1709329840811,-500.0,0.00021917,2]
[316032696,1709329840821,-500.0,0.00021917,2]
[316032698,1709329840831,-500.0,0.00021917,2]
[316032700,1709329840841,-500.0,0.00021917,2]
[316032702,1709329840851,-500.0,0.00021917,2]
[316032704,1709329840862,-500.0,0.00021917,2]
[316032707,1709329840872,-500.0,0.00021917,2]
[316032709,1709329840882,-500.0,0.00021917,2]
[316032711,1709329840892,-500.0,0.00021917,2]
[316032713,1709329840903,-500.0,0.00021917,2]
[316032715,1709329840913,-500.0,0.00021917,2]
[316032717,1709329840923,-500.0,0.00021917,2]
[316032719,1709329840933,-600.02814574,0.00021917,2]
[316032722,1709329840945,-500.0,0.00021917,2]
[316032724,1709329840955,-500.0,0.00021917,2]
[316032726,1709329840965,-500.0,0.00021917,2]
[316032728,1709329840975,-327.2371112,0.00021917,2]
[316032730,1709329840985,-500.0,0.00021917,2]
[316032732,1709329840995,-500.0,0.00021917,2]
[316032734,1709329841005,-500.0,0.00021917,2]
[316032736,1709329841015,-500.0,0.00021917,2]
[316032738,1709329841025,-500.0,0.00021917,2]
[316032741,1709329841035,-500.0,0.00021917,2]
[316032743,1709329841045,-500.0,0.00021917,2]
[316032745,1709329841055,-500.0,0.00021917,2]
[316032747,1709329841065,-500.0,0.00021917,2]
[316032749,1709329841076,-500.0,0.00021917,2]
[316032751,1709329841086,-500.0,0.00021917,2]
[316032754,1709329841102,-500.0,0.00021917,2]
[316032755,1709329841113,-500.0,0.00021917,2]
[316032756,1709329841124,-250.17401585,0.00021917,2]
[316032757,1709329841135,-500.0,0.00021917,2]
[316032758,1709329841146,-500.0,0.00021917,2]
[316032759,1709329841157,-648.85,0.00021917,2]
[316032760,1709329841167,-500.0,0.00021917,2]
[316032761,1709329841177,-500.0,0.00021917,2]
[316032763,1709329841188,-500.0,0.00021917,2]
[316032765,1709329841199,-624.73467929,0.00021917,2]
[316032767,1709329841209,-500.0,0.00021917,2]
[316032769,1709329841219,-500.0,0.00021917,2]
[316032772,1709329841230,-500.0,0.00021917,2]
[316032774,1709329841240,-500.0,0.00021917,2]
[316032776,1709329841250,-500.0,0.00021917,2]
[316032778,1709329841260,-500.0,0.00021917,2]
[316032780,1709329841271,-548.39,0.00021917,2]
[316032782,1709329841281,-500.0,0.00021917,2]
[316032785,1709329841292,-502.83177796,0.00021917,2]
[316032787,1709329841302,-500.0,0.00021917,2]
[316032789,1709329841312,-500.0,0.00021917,2]
[316032791,1709329841322,-506.56090297,0.00021917,2]
[316032793,1709329841332,-500.0,0.00021917,2]
[316032795,1709329841342,-500.0,0.00021917,2]
[316032798,1709329841353,-500.0,0.00021917,2]
[316032800,1709329841363,-500.0,0.00021917,2]
[316032802,1709329841373,-500.0,0.00021917,2]
[316032804,1709329841383,-500.0,0.00021917,2]
[316032806,1709329841393,-500.0,0.00021917,2]
[316032808,1709329841403,-500.0,0.00021917,2]
[316032811,1709329841414,-500.0,0.00021917,2]
[316032813,1709329841425,-500.0,0.00021917,2]
[316032815,1709329841435,-500.0,0.00021917,2]
[316032817,1709329841447,-500.0,0.00021917,2]
[316032819,1709329841457,-500.0,0.00021917,2]
[316032821,1709329841468,-500.0,0.00021917,2]
[316032823,1709329841477,-500.0,0.00021917,2]
[316032825,1709329841488,-547.18,0.00021917,2]
[316032827,1709329841498,-500.0,0.00021917,2]
[316032829,1709329841508,-500.0,0.00021917,2]
[316032832,1709329841519,-529.34093983,0.00021917,2]
[316032834,1709329841534,-500.0,0.00021917,2]
[316032836,1709329841544,-500.0,0.00021917,2]
[316032839,1709329841554,-500.0,0.00021917,2]
[316032841,1709329841564,-500.0,0.00021917,2]
[316032843,1709329841574,-500.0,0.00021917,2]
[316032845,1709329841584,-500.0,0.00021917,2]
[316032847,1709329841595,-500.0,0.00021917,2]
[316032849,1709329841605,-500.0,0.00021917,2]
[316032851,1709329841616,-500.0,0.00021917,2]
[316032853,1709329841626,-500.0,0.00021917,2]
[316032856,1709329841637,-500.0,0.00021917,2]
[316032858,1709329841647,-500.0,0.00021917,2]
[316032860,1709329841657,-503.63688815,0.00021917,2]
[316032862,1709329841668,-500.0,0.00021917,2]
[316032864,1709329841677,-500.0,0.00021917,2]
[316032866,1709329841687,-500.0,0.00021917,2]
[316032868,1709329841697,-500.0,0.00021917,2]
[316032871,1709329841707,-500.0,0.00021917,2]
[316032873,1709329841718,-500.0,0.00021917,2]
[316032875,1709329841727,-500.0,0.00021917,2]
[316032877,1709329841737,-500.0,0.00021917,2]
[316032879,1709329841747,-500.0,0.00021917,2]
[316032882,1709329841762,-500.0,0.00021917,2]
[316032884,1709329841772,-500.0,0.00021917,2]
[316032886,1709329841782,-500.0,0.00021917,2]
[316032888,1709329841793,-500.0,0.00021917,2]
[316032890,1709329841803,-500.0,0.00021917,2]
[316032892,1709329841813,-500.0,0.00021917,2]
[316032895,1709329841823,-500.0,0.00021917,2]
[316032897,1709329841834,-500.0,0.00021917,2]
[316032899,1709329841844,-603.41952957,0.00021917,2]
[316032901,1709329841853,-500.0,0.00021917,2]
[316032903,1709329841864,-505.03142903,0.00021917,2]
[316032904,1709329841874,-560.2,0.00021917,2]
[316032905,1709329841884,-712.48,0.00021917,2]
[316032906,1709329841894,-500.0,0.00021917,2]
[316032907,1709329841904,-500.0,0.00021917,2]
[316032908,1709329841914,-500.0,0.00021917,2]
[316032909,1709329841924,-500.0,0.00021917,2]
[316032910,1709329841933,-500.0,0.00021917,2]
[316032911,1709329841943,-500.0,0.00021917,2]
[316032912,1709329841953,-583.5,0.00021917,2]
[316032913,1709329841963,-514.40942397,0.00021917,2]
[316032914,1709329841973,-500.0,0.00021917,2]
[316032915,1709329841984,-500.0,0.00021917,2]
[316032916,1709329841993,-885.54,0.00021917,2]
[316032917,1709329842003,-641.34,0.00021917,2]
[316032918,1709329842014,-500.0,0.00021917,2]
[316032919,1709329842024,-500.0,0.00021917,2]
[316032920,1709329842034,-500.0,0.00021917,2]
[316032921,1709329842045,-541.37,0.00021917,2]
[316032922,1709329842056,-500.0,0.00021917,2]
[316032923,1709329842066,-500.0,0.00021917,2]
[316032924,1709329842077,-406.45678898,0.00021917,2]
[316032925,1709329842087,-500.0,0.00021917,2]
[316032926,1709329842098,-500.0,0.00021917,2]
[316032927,1709329842108,-665.0,0.00021917,2]
[316032928,1709329842119,-500.0,0.00021917,2]
[316032929,1709329842130,-500.0,0.00021917,2]
[316032930,1709329842140,-500.0,0.00021917,2]
[316032931,1709329842150,-500.0,0.00021917,2]
[316032932,1709329842161,-500.0,0.00021917,2]
[316032933,1709329842171,-500.0,0.00021917,2]
[316032934,1709329842180,-500.0,0.00021917,2]
[316032935,1709329842192,-500.0,0.00021917,2]
[316032936,1709329842201,-500.0,0.00021917,2]
[316032937,1709329842212,-729.93,0.00021917,2]
[316032938,1709329842672,-305.15299624,0.00021917,2]
[316032939,1709329842682,-500.0,0.00021917,2]
[316032940,1709329842693,-500.0,0.00021917,2]
[316032941,1709329842703,-500.0,0.00021917,2]
[316032942,1709329842712,-500.0,0.00021917,2]
[316032943,1709329842722,-489.84166825,0.00021917,2]
[316032944,1709329842731,-661.91,0.00021917,2]
[316032945,1709329842741,-500.0,0.00021917,2]
[316032946,1709329842752,-593.69,0.00021917,2]
[316032947,1709329842762,-500.0,0.00021917,2]
[316032948,1709329842772,-500.0,0.00021917,2]
[316032949,1709329842782,-500.0,0.00021917,2]
[316032950,1709329842791,-500.0,0.00021917,2]
[316032951,1709329842801,-500.0,0.00021917,2]
[316032952,1709329842811,-500.0,0.00021917,2]
[316032953,1709329842821,-1167.66,0.00021917,2]
[316032954,1709329842831,-707.97,0.00021917,2]
[316032955,1709329842840,-500.0,0.00021917,2]
[316032956,1709329842850,-782.5,0.00021917,2]
[316032957,1709329842859,-500.0,0.00021917,2]
[316032958,1709329842869,-500.0,0.00021917,2]
[316032959,1709329842879,-594.53758102,0.00021917,2]
[316032960,1709329842888,-500.0,0.00021917,2]
[316032961,1709329842897,-500.0,0.00021917,2]
[316032962,1709329842906,-500.0,0.00021917,2]
[316032963,1709329842916,-500.0,0.00021917,2]
[316032964,1709329842925,-500.0,0.00021917,2]
[316032965,1709329842935,-500.0,0.00021917,2]
[316032966,1709329842946,-623.3585359,0.00021917,2]
[316032967,1709329842955,-500.0,0.00021917,2]
[316032968,1709329842964,-500.0,0.00021917,2]
[316032970,1709329842975,-751.17,0.00021917,2]
[316032971,1709329842985,-500.0,0.00021917,2]
[316032972,1709329842994,-500.0,0.00021917,2]
[316032973,1709329843004,-500.0,0.00021917,2]
[316032974,1709329843013,-513.18764029,0.00021917,2]
[316032975,1709329843022,-500.0,0.00021917,2]
[316032976,1709329843033,-500.0,0.00021917,2]
[316032977,1709329843043,-500.0,0.00021917,2]
[316032978,1709329843054,-500.0,0.00021917,2]
[316032979,1709329843064,-500.0,0.00021917,2]
[316032980,1709329843073,-500.0,0.00021917,2]
[316032981,1709329843083,-500.0,0.00021917,2]
[316032982,1709329843093,-500.0,0.00021917,2]
[316032983,1709329843102,-500.0,0.00021917,2]
[316032984,1709329843112,-500.0,0.00021917,2]
[316032985,1709329843124,-500.0,0.00021917,2]
[316032986,1709329843134,-500.0,0.00021917,2]
[316032987,1709329843143,-500.0,0.00021917,2]
[316032988,1709329843154,-500.0,0.00021917,2]
[316032989,1709329843164,-500.0,0.00021917,2]
[316032990,1709329843174,-500.0,0.00021917,2]
[316032991,1709329843184,-500.0,0.00021917,2]
[316032992,1709329843195,-506.58,0.00021917,2]
[316032993,1709329843205,-500.0,0.00021917,2]
[316032994,1709329843215,-500.0,0.00021917,2]
[316032995,1709329843225,-500.0,0.00021917,2]
[316032996,1709329843235,-500.0,0.00021917,2]
[316032997,1709329843245,-500.0,0.00021917,2]
[316032998,1709329843256,-500.0,0.00021917,2]
[316032999,1709329843266,-500.0,0.00021917,2]
[316033000,1709329843276,-500.0,0.00021917,2]
[316033001,1709329843286,-500.0,0.00021917,2]
[316033002,1709329843296,-368.41,0.00021917,2]
[316033003,1709329843306,-500.0,0.00021917,2]
[316033004,1709329843316,-500.0,0.00021917,2]
[316033005,1709329843327,-514.76,0.00021917,2]
[316033006,1709329843337,-500.0,0.00021917,2]
[316033007,1709329843347,-500.0,0.00021917,2]
[316033008,1709329843357,-500.0,0.00021917,2]
[316033009,1709329843367,-500.0,0.00021917,2]
[316033010,1709329843377,-500.0,0.00021917,2]
[316033011,1709329843387,-500.0,0.00021917,2]
[316033012,1709329843397,-500.0,0.00021917,2]
[316033013,1709329843407,-500.0,0.00021917,2]
[316033014,1709329843416,-658.49,0.00021917,2]
[316033015,1709329843427,-500.0,0.00021917,2]
[316033016,1709329843436,-500.0,0.00021917,2]
[316033017,1709329843450,-336.71414905,0.00021917,2]
[316033018,1709329843460,-500.0,0.00021917,2]
[316033019,1709329843471,-500.0,0.00021917,2]
[316033020,1709329843481,-500.0,0.00021917,2]
[316033022,1709329843490,-500.0,0.00021917,2]
[316033025,1709329843500,-500.0,0.00021917,2]
[316033028,1709329843510,-500.0,0.00021917,2]
[316033031,1709329843521,-500.0,0.00021917,2]
[316033034,1709329843531,-500.0,0.00021917,2]
[316033036,1709329843541,-500.0,0.00021917,2]
[316033038,1709329843550,-500.0,0.00021917,2]
[316033040,1709329843559,-500.0,0.00021917,2]
[316033042,1709329843568,-654.07,0.00021917,2]
[316033044,1709329843577,-632.31,0.00021917,2]
[316033046,1709329843586,-500.0,0.00021917,2]
[316033049,1709329843596,-500.0,0.00021917,2]
[316033053,1709329843605,-500.0,0.00021917,2]
[316033057,1709329843615,-566.35,0.00021917,2]
[316033061,1709329843625,-500.0,0.00021917,2]
[316033064,1709329843634,-500.0,0.00021917,2]
[316033068,1709329843644,-500.0,0.00021917,2]
[316033072,1709329843653,-500.0,0.00021917,2]
[316033075,1709329843663,-372.34663238,0.00021917,2]
[316033080,1709329843673,-500.0,0.00021917,2]
[316033083,1709329843682,-500.0,0.00021917,2]
[316033087,1709329843693,-500.0,0.00021917,2]
[316033091,1709329843703,-500.0,0.00021917,2]
[316033093,1709329843712,-776.51,0.00021917,2]
[316033095,1709329843722,-500.0,0.00021917,2]
[316033097,1709329843732,-500.0,0.00021917,2]
[316033099,1709329843741,-500.0,0.00021917,2]
[316033101,1709329843751,-500.0,0.00021917,2]
[316033103,1709329843760,-1052.06,0.00021917,2]
[316033105,1709329843770,-500.0,0.00021917,2]
[316033106,1709329843779,-500.0,0.00021917,2]
[316033108,1709329843789,-500.0,0.00021917,2]
[316033110,1709329843798,-500.0,0.00021917,2]
[316033112,1709329843808,-500.0,0.00021917,2]
[316033114,1709329843818,-500.0,0.00021917,2]
[316033115,1709329843827,-500.0,0.00021917,2]
[316033116,1709329843838,-500.0,0.00021917,2]
[316033117,1709329843848,-500.0,0.00021917,2]
[316033118,1709329843858,-500.0,0.00021917,2]
[316033119,1709329843867,-500.0,0.00021917,2]
[316033120,1709329843877,-500.0,0.00021917,2]
[316033121,1709329843886,-500.0,0.00021917,2]
[316033122,1709329843896,-331.32670262,0.00021917,2]
[316033123,1709329843906,-500.0,0.00021917,2]
[316033124,1709329843915,-500.0,0.00021917,2]
[316033125,1709329843925,-500.0,0.00021917,2]
[316033126,1709329843935,-500.0,0.00021917,2]
[316033127,1709329843946,-500.0,0.00021917,2]
[316033128,1709329843957,-500.0,0.00021917,2]
[316033130,1709329843968,-500.0,0.00021917,2]
[316033132,1709329843978,-476.81015975,0.00021917,2]
[316033134,1709329843987,-500.0,0.00021917,2]
[316033136,1709329843997,-500.0,0.00021917,2]
[316033138,1709329844007,-500.0,0.00021917,2]
[316033140,1709329844016,-500.0,0.00021917,2]
[316033142,1709329844026,-500.0,0.00021917,2]
[316033144,1709329844037,-500.0,0.00021917,2]
[316033146,1709329844046,-500.0,0.00021917,2]
[316033148,1709329844056,-500.0,0.00021917,2]